bitfinex/quotes_ETHUSD_20241116
["timestamp","ask_amount","ask_price","bid_price","bid_amount"]
[1731727674267,6.59185352,3127.7,3127.6,0.00321476]
[1731727674885,5.26789776,3127.7,3127.6,0.00321476]
[1731727677424,4.39611252,3127.7,3127.6,0.00321476]
[1731727681217,7.96611252,3127.7,3127.6,0.00321476]
[1731727682430,7.96611252,3127.7,3127.6,4.76e-06]
[1731727683703,7.96483469,3127.7,3127.6,4.76e-06]
[1731727684299,16.88483469,3127.7,3127.6,4.76e-06]
[1731727686439,3.19917,3125.9,3125.5,0.8175]
[1731727686646,3.19917,3125.9,3125.6,0.23691416]
[1731727686941,3.19918,3125.8,3125.5,0.8175]
[1731727687286,0.7885,3126.2,3125.1,0.8175]
[1731727687399,3.19887,3126.1,3125.2,0.23681248]
[1731727687599,3.19897,3126.0,3125.3,0.66223273]
[1731727687836,3.19924,3125.8,3125.4,0.23681248]
[1731727688423,3.19929,3125.7,3125.5,0.00321476]
[1731727689212,3.19938,3125.6,3125.5,0.00321476]
[1731727690027,3.19918,3125.8,3125.5,0.00321476]
[1731727690400,3.19898,3126.0,3125.5,0.00321476]
[1731727690730,3.19879,3126.2,3125.6,0.7931]
[1731727690932,3.19889,3126.1,3125.6,0.79631476]
[1731727691207,12.11834,3126.7,3126.0,0.7931]
[1731727691519,3.19808,3126.9,3126.3,3.0]
[1731727691715,3.19815,3126.8,3126.3,3.0]
[1731727691916,3.19815,3126.8,3126.3,0.657806]
[1731727692120,3.19795,3127.0,3126.1,0.37931]
[1731727692121,3.19805,3126.9,3126.1,0.37931]
[1731727692423,3.19771,3127.3,3126.5,3.19839]
[1731727692606,3.19771,3127.3,3126.7,0.7931]
[1731727693547,0.7998,3127.5,3126.7,0.79631476]
[1731727693951,3.19779,3127.2,3126.7,0.79631476]
[1731727696086,3.19736,3127.6,3126.8,3.19807]
[1731727696288,3.19736,3127.6,3126.9,3.19796]
[1731727696584,3.19736,3127.6,3127.0,0.7931]
[1731727697091,3.19695,3128.0,3127.4,0.7931]
[1731727697411,3.19658,3128.4,3127.6,3.19732]
[1731727697757,3.19658,3128.4,3127.8,3.19713]
[1731727697990,3.19658,3128.4,3127.9,0.7931]
[1731727698166,3.19658,3128.4,3127.9,0.79631476]
[1731727698495,3.19693,3128.0,3127.9,0.00321476]
[1731727700283,3.99673,3128.0,3127.9,0.00321476]
[1731727700795,0.7998,3128.0,3127.9,0.00321476]
[1731727701673,3.99673,3128.0,3127.9,0.00321476]
[1731727701889,4.716083,3128.0,3127.9,0.00321476]
[1731727705424,3.19693,3128.0,3127.9,0.00321476]
[1731727705592,0.7998,3128.4,3127.9,0.00321476]
[1731727705792,3.1969,3128.1,3127.9,0.00321476]
[1731727706144,3.19662,3128.3,3127.9,0.00321476]
[1731727706338,3.19693,3128.0,3127.9,0.00321476]
[1731727709352,3.836297,3128.0,3127.9,0.00321476]
[1731727709555,3.19693,3128.0,3127.9,0.83021476]
[1731727709760,0.005,3128.6,3128.4,0.827]
[1731727709959,0.005,3128.6,3128.5,3.19642]
[1731727710258,0.005,3128.6,3128.5,3.918424]
[1731727710679,0.005,3128.6,3128.5,6.918424]
[1731727710962,0.005,3128.6,3128.5,7.678324]
[1731727711654,0.005,3128.6,3128.5,4.481904]
[1731727711845,0.005,3128.6,3128.5,1.481904]
[1731727712366,0.005,3128.6,3128.5,4.481904]
[1731727712718,0.005,3128.6,3128.5,1.481904]
[1731727713058,0.005,3128.6,3128.5,4.481904]
[1731727713466,0.005,3128.6,3128.5,7.678324]
[1731727715119,0.005,3128.6,3128.5,4.481904]
[1731727715324,0.005,3128.6,3128.5,7.678324]
[1731727716319,0.005,3128.6,3128.5,1.481904]
[1731727716525,0.005,3128.6,3128.5,0.7599]
[1731727717262,0.005,3128.6,3128.5,3.7599]
[1731727717621,0.005,3128.6,3128.5,0.7599]
[1731727717826,0.005,3128.6,3128.5,3.7599]
[1731727718027,0.00068202,3128.6,3128.5,0.7599]
[1731727718464,0.00068202,3128.6,3128.5,1.45587248]
[1731727719556,0.00068202,3128.6,3128.5,0.7599]
[1731727723367,0.00068202,3128.6,3128.5,3.7599]
[1731727723576,0.00068202,3128.6,3128.5,6.95632]
[1731727723874,0.00068202,3128.6,3128.5,3.7599]
[1731727725948,0.00068202,3128.6,3128.5,0.7599]
[1731727727351,0.00068202,3128.6,3128.4,0.00321476]
[1731727727549,3.19699202,3128.6,3128.4,0.00321476]
[1731727728568,3.19642,3128.5,3128.4,0.00321476]
[1731727728792,0.00068202,3128.6,3128.4,0.76461476]
[1731727729349,0.00068202,3128.6,3128.5,6.19642]
[1731727729545,0.00068202,3128.6,3128.5,7.21218448]
[1731727730890,0.00068202,3128.6,3128.5,8.02538448]
[1731727731364,0.00068202,3128.6,3128.5,8.08930131]
[1731727731963,0.00068202,3128.6,3128.5,8.02538448]
[1731727732281,0.00068202,3128.6,3128.5,8.08930224]
[1731727733847,0.00068202,3128.6,3128.5,8.02538448]
[1731727735412,0.00068202,3128.6,3128.5,9.13718295]
[1731727735549,0.00068202,3128.6,3128.5,8.5507826]
[1731727736695,0.00068202,3128.6,3128.5,11.13475734]
[1731727739387,0.00068202,3128.6,3128.5,11.65724668]
[1731727740084,0.00068202,3128.6,3128.5,12.20724668]
[1731727740597,0.00068202,3128.6,3128.5,11.68475734]
[1731727740761,0.00068202,3128.6,3128.5,11.13475734]
[1731727742075,0.00068202,3128.6,3128.5,11.65724668]
[1731727742256,0.00068202,3128.6,3128.5,11.13475734]
[1731727747317,0.00068202,3128.6,3128.5,4.82896448]
[1731727747570,0.00068202,3128.6,3128.4,0.00321476]
[1731727747712,3.19642,3128.5,3128.4,0.00321476]
[1731727749208,3.96972,3128.5,3128.4,0.00321476]
[1731727749790,3.86172192,3128.5,3128.4,0.00321476]
[1731727749991,4.56759231,3128.5,3128.4,0.00321476]
[1731727753893,4.57759231,3128.5,3128.4,0.00321476]
[1731727754305,5.12759231,3128.5,3128.4,0.00321476]
[1731727755641,8.12759231,3128.5,3128.4,0.00321476]
[1731727757619,8.13759231,3128.5,3128.4,0.00321476]
[1731727758002,7.58759231,3128.5,3128.4,0.00321476]
[1731727758422,7.57759231,3128.5,3128.4,0.00321476]
[1731727758810,7.58759231,3128.5,3128.4,0.00321476]
[1731727759840,8.13759231,3128.5,3128.4,0.00321476]
[1731727761225,17.05759231,3128.5,3128.4,0.00321476]
[1731727764146,17.05759231,3128.5,3128.4,4.76e-06]
[1731727768532,17.69672104,3128.5,3128.4,4.76e-06]
[1731727769854,14.12672104,3128.5,3128.4,4.76e-06]
[1731727770022,3.19701202,3128.6,3128.4,4.76e-06]
[1731727771957,0.00068202,3128.6,3128.4,4.76e-06]
[1731727772712,3.19642,3128.5,3128.4,4.76e-06]
[1731727773052,0.00068202,3128.6,3128.4,4.76e-06]
[1731727773210,3.19701202,3128.6,3128.4,4.76e-06]
[1731727773407,0.00068202,3128.6,3128.4,4.76e-06]
[1731727774126,0.00068202,3128.6,3128.5,7.60038938]
[1731727775125,0.00068202,3128.6,3128.5,7.60039865]
[1731727776609,0.00068202,3128.6,3128.5,7.66432167]
[1731727778910,0.00068202,3128.6,3128.5,7.66449302]
[1731727779529,0.00068202,3128.6,3128.5,7.60057]
[1731727780171,0.00068202,3128.6,3128.5,8.06797681]
[1731727780854,0.00068202,3128.6,3128.5,8.00406597]
[1731727781061,0.00068202,3128.6,3128.5,8.5534185]
[1731727781269,0.00068202,3128.6,3128.5,8.48950765]
[1731727781809,0.00068202,3128.6,3128.5,8.62950765]
[1731727783920,0.00068202,3128.6,3128.5,8.48950765]
[1731727785252,0.00068202,3128.6,3128.5,8.48866992]
[1731727785563,0.00068202,3128.6,3128.5,8.94634614]
[1731727786272,1e-05,3129.0,3128.9,13.73565572]
[1731727786569,0.8147,3130.5,3130.0,3.19487]
[1731727786733,3.339637,3130.6,3130.0,6.30424286]
[1731727786941,3.339637,3130.6,3130.5,0.7509]
[1731727786942,0.145297,3130.6,3130.5,0.7509]
[1731727787142,0.145297,3130.6,3130.5,7.94323457]
[1731727788019,0.145297,3130.6,3130.5,8.08323457]
[1731727788362,3.19311,3131.8,3131.3,0.7509]
[1731727788583,0.407311,3131.8,3131.3,0.7509]
[1731727788776,0.407311,3131.8,3131.3,3.94445]
[1731727789143,0.875,3131.9,3131.3,0.8909]
[1731727789350,0.875,3131.9,3131.7,3.7509]
[1731727789666,0.875,3131.9,3131.7,3.75411476]
[1731727789872,0.875,3131.9,3131.7,6.94724476]
[1731727790246,0.875,3131.9,3131.7,7.08724476]
[1731727790478,0.875,3131.9,3131.7,4.08724476]
[1731727790877,0.875,3131.9,3131.8,3.19305]
[1731727791233,0.875,3131.9,3131.8,6.20305]
[1731727791468,0.875,3131.9,3131.8,6.19626476]
[1731727791979,0.875,3131.9,3131.8,6.33626476]
[1731727793287,0.875,3131.9,3131.8,7.68426476]
[1731727793448,0.875,3131.9,3131.8,9.85958249]
[1731727793656,0.875,3131.9,3131.8,10.53040754]
[1731727793970,0.005,3132.0,3131.9,8.4440579]
[1731727794278,0.005,3132.0,3131.9,8.67745144]
[1731727794462,0.012,3132.8,3132.6,0.788]
[1731727794665,0.012,3132.8,3132.7,9.30150286]
[1731727794829,0.012,3132.8,3132.7,10.63100462]
[1731727795034,0.012,3132.8,3132.7,10.63421938]
[1731727795246,0.012,3132.8,3132.7,11.42221938]
[1731727795468,2.38041289,3133.2,3132.8,3.0]
[1731727795645,2.38041289,3133.2,3133.1,3.10937286]
[1731727795972,2.38041289,3133.2,3133.1,6.11258762]
[1731727796144,0.145297,3133.8,3133.2,3.788]
[1731727796346,0.145297,3133.8,3133.2,3.79121476]
[1731727796672,3.19143,3133.4,3133.2,0.00321476]
[1731727796832,0.319143,3133.3,3133.2,0.00321476]
[1731727797033,3.19111,3133.7,3133.2,0.00321476]
[1731727797333,3.19121,3133.6,3133.2,0.00321476]
[1731727797533,0.8021,3133.7,3133.2,0.00321476]
[1731727797731,3.99362,3133.3,3133.2,0.00321476]
[1731727799076,0.947397,3133.8,3133.2,0.00321476]
[1731727799278,3.1914,3133.5,3133.2,0.00321476]
[1731727799574,3.829651,3133.5,3133.2,0.00321476]
[1731727799774,3.19152,3133.3,3133.2,0.00321476]
[1731727801150,3.19123,3133.6,3133.2,0.00321476]
[1731727801352,0.145297,3133.8,3133.2,0.00321476]
[1731727801562,3.19111,3133.7,3133.2,0.00321476]
[1731727801764,0.145297,3133.8,3133.2,0.00321476]
[1731727801765,3.19143,3133.4,3133.2,0.00321476]
[1731727801963,3.19121,3133.6,3133.2,0.00321476]
[1731727802133,3.19135,3133.5,3133.2,0.00321476]
[1731727802567,0.145297,3133.8,3133.2,0.00321476]
[1731727802872,3.19121,3133.6,3133.2,0.00321476]
[1731727803053,0.3336507,3133.6,3133.2,0.00321476]
[1731727803388,0.145297,3133.8,3133.6,0.788]
[1731727803588,0.145297,3133.8,3133.6,0.79121476]
[1731727803879,0.145297,3133.8,3133.6,0.74121476]
[1731727807170,0.145297,3133.8,3133.6,0.00321476]
[1731727807483,3.19111,3133.7,3133.6,0.00321476]
[1731727808443,3.336317,3133.8,3133.6,0.00321476]
[1731727808643,0.145297,3133.8,3133.6,0.00321476]
[1731727809301,3.19111,3133.7,3133.6,0.00321476]
[1731727810342,3.9198997,3133.7,3133.6,0.00321476]
[1731727810782,4.7134997,3133.7,3133.6,0.00321476]
[1731727813752,3.9198997,3133.7,3133.6,0.00321476]
[1731727813987,3.19111,3133.7,3133.6,0.00321476]
[1731727815548,3.98471,3133.7,3133.6,0.00321476]
[1731727816787,3.19111,3133.7,3133.6,0.00321476]
[1731727820500,0.145297,3133.8,3133.6,0.00321476]
[1731727821187,0.145297,3133.8,3133.7,0.8294]
[1731727822374,0.145297,3133.8,3133.7,0.83261476]
[1731727822945,3.336307,3133.8,3133.7,0.00321476]
[1731727823150,4.7826207,3133.8,3133.7,0.00321476]
[1731727824963,3.19213,3132.7,3132.6,0.8294]
[1731727825475,3.19203,3132.8,3132.6,0.8294]
[1731727825797,3.19205,3132.8,3132.6,0.8294]
[1731727826815,3.19213,3132.7,3132.6,0.8294]
[1731727827022,3.19213,3132.7,3132.6,0.83261476]
[1731727828218,3.19203,3132.8,3132.6,0.83261476]
[1731727828595,3.19213,3132.7,3132.6,0.83261476]
[1731727829411,3.19213,3132.7,3132.6,0.00321476]
[1731727831675,4.149737,3132.7,3132.6,0.00321476]
[1731727832778,3.19213,3132.7,3132.6,0.00321476]
[1731727833128,3.19202,3132.9,3132.6,0.00321476]
[1731727833279,3.19203,3132.9,3132.6,0.00321476]
[1731727833478,3.19213,3132.7,3132.6,0.00321476]
[1731727833722,4.149747,3132.7,3132.6,0.00321476]
[1731727834486,3.19213,3132.7,3132.6,0.00321476]
[1731727835322,3.19201,3132.9,3132.6,0.00321476]
[1731727837693,3.19173,3133.1,3132.6,0.00321476]
[1731727837919,0.7980107,3133.8,3133.0,0.7558]
[1731727838119,0.145297,3133.8,3133.3,3.19142]
[1731727838331,0.145297,3133.8,3133.5,0.7558]
[1731727838833,3.1912,3133.7,3133.5,0.7558]
[1731727839041,3.8438677,3133.7,3133.3,0.00321476]
[1731727839247,3.19121,3133.6,3133.3,0.00321476]
[1731727839537,3.19142,3133.4,3133.3,0.00321476]
[1731727841427,4.02122,3133.4,3133.3,0.00321476]
[1731727850637,3.19142,3133.4,3133.3,0.00321476]
[1731727851376,0.8053,3133.7,3133.3,0.00321476]
[1731727851377,3.19132,3133.5,3133.3,0.00321476]
[1731727852142,3.19142,3133.4,3133.3,0.00321476]
[1731727854089,3.19142,3133.4,3133.3,0.76901476]
[1731727854754,3.19142,3133.4,3133.3,0.00321476]
[1731727855467,3.19142,3133.4,3132.8,3.08603476]
[1731727856285,3.19121,3133.6,3132.9,3.19193]
[1731727856501,3.19123,3133.6,3132.9,3.19193]
[1731727856985,3.88540187,3133.6,3132.9,3.19193]
[1731727857165,3.19143,3133.4,3132.9,0.00321476]
[1731727857704,0.69417187,3133.6,3132.9,0.00321476]
[1731727857842,3.19152,3133.3,3132.9,0.00321476]
[1731727858485,3.19152,3133.3,3132.9,0.81011476]
[1731727859391,0.8215,3133.7,3132.9,0.81011476]
[1731727859392,3.19163,3133.2,3132.9,0.81011476]
[1731727859744,3.19182,3133.0,3132.9,0.00321476]
[1731727861091,3.510793,3133.2,3132.9,0.00321476]
[1731727861394,3.19173,3133.1,3132.9,0.00321476]
[1731727861598,3.510793,3133.2,3132.9,0.00321476]
[1731727861804,3.19163,3133.2,3132.9,0.00321476]
[1731727862147,3.19144,3133.4,3132.9,0.00321476]
[1731727863173,3.19138,3133.5,3133.0,0.8069]
[1731727863864,3.19145,3133.4,3133.0,0.8069]
[1731727864482,3.1917,3133.2,3132.9,0.00321476]
[1731727864690,3.19182,3133.0,3132.9,0.00321476]
[1731727865892,4.626772,3133.0,3132.9,0.00321476]
[1731727867683,3.830172,3133.0,3132.9,0.00321476]
[1731727873114,3.840172,3133.0,3132.9,0.00321476]
[1731727876687,3.830172,3133.0,3132.9,0.00321476]
[1731727878606,3.840172,3133.0,3132.9,0.00321476]
[1731727879343,7.607472,3133.0,3132.9,0.00321476]
[1731727880028,7.607472,3133.0,3132.9,4.76e-06]
[1731727880527,17.077472,3133.0,3132.9,4.76e-06]
[1731727880701,3.19344,3131.5,3131.0,0.8047]
[1731727881504,3.19317,3131.7,3131.0,0.8047]
[1731727881833,0.7573,3131.9,3131.0,0.8047]
[1731727881834,3.19325,3131.6,3131.0,0.8047]
[1731727882299,3.19363,3131.3,3131.0,0.00321476]
[1731727882498,3.95093,3131.3,3131.0,0.00321476]
[1731727882703,3.19366,3131.2,3131.0,0.00321476]
[1731727883341,3.19376,3131.1,3131.0,0.00321476]
[1731727883999,0.7573,3131.3,3131.0,0.00321476]
[1731727884306,3.19376,3131.1,3131.0,0.00321476]
[1731727884522,3.589866,3131.1,3131.0,0.00321476]
[1731727885436,4.357166,3131.1,3131.0,0.00321476]
[1731727886823,7.357166,3131.1,3131.0,0.00321476]
[1731727887023,10.46653886,3131.1,3131.0,0.00321476]
[1731727889313,11.01653886,3131.1,3131.0,0.00321476]
[1731727889518,19.93653886,3131.1,3131.0,0.00321476]
[1731727890034,16.277166,3131.1,3131.0,0.00321476]
[1731727890284,0.7745,3131.6,3131.0,0.00321476]
[1731727890463,3.19297,3131.9,3131.2,3.19365]
[1731727890611,3.19308,3131.8,3131.0,4.02163476]
[1731727890964,3.19327,3131.6,3131.0,1.54938324]
[1731727891112,3.19327,3131.6,3131.0,0.82781476]
[1731727891317,3.19338,3131.5,3131.0,0.82781476]
[1731727892050,3.19346,3131.4,3131.0,0.82781476]
[1731727892434,3.19327,3131.6,3131.0,0.82781476]
[1731727892640,3.19306,3131.8,3131.1,3.19376]
[1731727892841,3.19274,3132.2,3131.5,3.19333]
[1731727893026,3.19274,3132.2,3131.2,3.19357]
[1731727893027,3.19229,3132.6,3131.7,3.19307]
[1731727893227,3.19229,3132.6,3131.8,0.398437]
[1731727893417,3.19229,3132.6,3131.7,3.19628476]
[1731727894046,3.19222,3132.7,3132.0,3.19283]
[1731727894364,3.19222,3132.7,3132.1,3.19274]
[1731727894719,3.19199,3132.9,3132.1,3.19274]
[1731727895032,3.19241,3132.5,3132.1,0.00321476]
[1731727895234,3.19264,3132.2,3132.1,0.00321476]
[1731727898565,6.20264,3132.2,3132.1,0.00321476]
[1731727898774,6.75264,3132.2,3132.1,0.00321476]
[1731727899249,6.74264,3132.2,3132.1,0.00321476]
[1731727899451,8.12871529,3132.2,3132.1,0.00321476]
[1731727899766,8.13871529,3132.2,3132.1,0.00321476]
[1731727899936,17.05871529,3132.2,3132.1,0.00321476]
[1731727900139,17.85501529,3132.2,3132.1,0.00321476]
[1731727903187,17.30501529,3132.2,3132.1,0.00321476]
[1731727903474,5.37501529,3132.2,3132.1,0.00321476]
[1731727903846,5.38501529,3132.2,3132.1,0.00321476]
[1731727904438,5.93501529,3132.2,3132.1,0.00321476]
[1731727905844,5.38501529,3132.2,3132.1,0.00321476]
[1731727906158,5.37501529,3132.2,3132.1,0.00321476]
[1731727906538,5.37501529,3132.2,3129.6,1.14453096]
[1731727906539,3.19517,3129.8,3129.6,1.14453096]
[1731727906739,3.19519,3129.7,3129.6,1.14453096]
[1731727906934,3.19519,3129.7,3128.4,3.11937286]
[1731727906935,3.1955,3129.4,3129.2,1.31151027]
[1731727907139,3.1955,3129.4,3129.2,0.8116]
[1731727907484,3.1953,3129.6,3129.2,1.31167814]
[1731727908155,3.1955,3129.4,3129.2,1.31167814]
[1731727908744,3.1955,3129.4,3129.2,1.3148929]
[1731727909166,3.19559,3129.4,3129.2,1.3148929]
[1731727909665,3.1956,3129.3,3129.2,0.5032929]
[1731727909836,3.1956,3129.3,3129.2,0.00321476]
[1731727910038,3.834719,3129.3,3129.2,0.50337968]
[1731727911082,3.834719,3129.3,3129.2,0.00321476]
[1731727912541,4.598619,3129.3,3129.2,0.00321476]
[1731727916916,8.92,3129.5,3129.2,0.00321476]
[1731727918188,12.11541,3129.5,3129.2,0.00321476]
[1731727919717,8.92,3129.5,3129.2,0.00321476]
[1731727919883,12.11547,3129.5,3129.2,0.00321476]
[1731727920082,3.1956,3129.3,3129.2,0.00321476]
[1731727920446,4.40716,3129.3,3129.2,0.00321476]
[1731727921014,4.41716,3129.3,3129.2,0.00321476]
[1731727921539,8.17965551,3129.3,3129.2,0.00321476]
[1731727921846,12.50355551,3129.3,3129.2,0.00321476]
[1731727922742,21.42355551,3129.3,3129.2,0.00321476]
[1731727923699,21.42355551,3129.3,3129.2,4.76e-06]
[1731727924348,21.42355551,3129.3,3127.5,0.50026353]
[1731727924349,3.19721,3127.8,3127.5,1.31326353]
[1731727924554,3.19731,3127.7,3127.5,1.31326353]
[1731727924760,3.19721,3127.8,3127.5,1.31326353]
[1731727924917,3.19721,3127.8,3127.5,0.813]
[1731727925319,4.53639551,3128.4,3127.1,0.813]
[1731727925649,3.19743,3127.6,3127.1,0.813]
[1731727925855,3.76249551,3128.0,3127.1,0.813]
[1731727926010,3.19774,3127.2,3127.1,0.813]
[1731727926353,3.19755,3127.4,3127.1,0.813]
[1731727926947,3.19755,3127.4,3127.1,0.81621476]
[1731727928213,3.19735,3127.6,3127.1,0.81621476]
[1731727928413,0.8244,3127.8,3127.1,0.81621476]
[1731727928613,3.19746,3127.5,3127.1,0.81621476]
[1731727928851,3.19663,3128.3,3127.7,0.8019]
[1731727929215,9.7444,3128.7,3127.7,0.8019]
[1731727929216,9.7444,3128.7,3127.7,4.00232476]
[1731727929412,0.97444,3128.6,3127.8,3.19711]
[1731727929651,3.19636,3128.6,3127.8,3.20032476]
[1731727929964,3.1965,3128.5,3127.8,3.20031476]
[1731727930116,3.19611,3128.8,3127.8,0.00321476]
[1731727930310,3.19674,3128.2,3127.8,0.00321476]
[1731727930710,3.19678,3128.2,3127.8,0.00321476]
[1731727931225,3.19685,3128.1,3127.8,0.00321476]
[1731727931624,3.84258091,3129.1,3127.9,0.765]
[1731727931825,3.19549,3129.5,3128.6,3.96127]
[1731727932030,3.19567,3129.3,3128.6,3.96127]
[1731727932276,3.19567,3129.3,3128.6,3.96448476]
[1731727932574,0.02,3129.7,3128.6,0.76821476]
[1731727932772,0.02,3129.7,3128.6,0.00321476]
[1731727932773,0.01,3129.5,3128.6,0.00321476]
[1731727932984,3.19583,3129.1,3128.6,0.00321476]
[1731727933327,3.19586,3129.1,3128.7,0.7816]
[1731727933566,3.19611,3128.8,3128.7,0.00321476]
[1731727937136,16.47941,3128.8,3128.7,4.76e-06]
[1731727939182,17.11156011,3128.8,3128.7,4.76e-06]
[1731727939392,19.51856467,3128.8,3128.7,4.76e-06]
[1731727941089,15.15526467,3128.8,3128.7,4.76e-06]
[1731727941388,3.19611,3128.8,3128.7,4.76e-06]
[1731727944257,3.19601,3128.9,3128.8,0.7816]
[1731727944481,3.83521,3128.9,3128.8,0.7816]
[1731727944663,3.19601,3128.9,3128.8,0.7816]
[1731727944857,3.19601,3128.9,3128.1,3.19678]
[1731727945062,3.19613,3128.8,3128.2,1.01744443]
[1731727945286,3.19613,3128.8,3128.2,3.9783]
[1731727945494,3.19613,3128.8,3128.3,0.23584353]
[1731727945672,3.19613,3128.8,3128.2,3.9783]
[1731727945877,3.19577,3129.2,3128.5,3.1964]
[1731727946077,3.19577,3129.2,3128.6,0.8051]
[1731727946274,3.31,3129.4,3128.6,0.8051]
[1731727946482,3.19572,3129.2,3128.6,4.00461476]
[1731727946699,3.19582,3129.1,3128.6,0.80831476]
[1731727947031,3.19594,3129.0,3128.6,0.80831476]
[1731727947309,3.19572,3129.2,3128.6,0.80831476]
[1731727947508,3.19572,3129.2,3128.6,1.20879124]
[1731727948080,6.50553,3129.4,3128.6,4.40501124]
[1731727948515,7.1715,3129.6,3128.8,0.8051]
[1731727948516,3.1953,3129.6,3128.8,0.8051]
[1731727948811,3.19509,3129.8,3129.0,3.19582]
[1731727948812,3.19523,3129.7,3129.0,3.19582]
[1731727949004,3.19509,3129.8,3129.0,3.19582]
[1731727949005,3.19509,3129.8,3129.1,3.1958]
[1731727949209,3.19492,3130.0,3129.2,3.1956]
[1731727949412,3.19492,3130.0,3129.3,4.23632636]
[1731727949719,3.1955,3129.4,3129.3,0.00321476]
[1731727950802,3.195,3129.9,3129.3,0.00321476]
[1731727951019,3.195,3129.9,3129.4,0.7575]
[1731727951310,8.92,3130.2,3129.4,0.7575]
[1731727951311,3.1951,3129.8,3129.4,0.7575]
[1731727951611,3.19539,3129.5,3129.4,0.7575]
[1731727952182,3.1955,3129.4,3129.3,0.00321476]
[1731727952807,3.51505,3129.4,3129.3,0.00321476]
[1731727955672,3.51505,3129.4,3129.1,0.59173984]
[1731727955872,3.1957,3129.2,3129.1,0.59173984]
[1731727957421,3.1957,3129.2,3128.3,3.0]
[1731727957584,0.31955,3129.4,3128.4,0.60570859]
[1731727957969,3.19602,3128.9,3128.4,0.37]
[1731727958126,3.19602,3128.9,3128.4,0.37321476]
[1731727958428,0.8106,3129.4,3128.4,0.37321476]
[1731727958429,3.19627,3128.7,3128.4,0.37321476]
[1731727958580,3.19642,3128.5,3128.4,0.37321476]
[1731727959407,3.19642,3128.5,3128.4,0.00321476]
[1731727964302,3.1961,3128.9,3128.4,0.00321476]
[1731727964503,3.19591,3129.0,3128.5,0.7893]
[1731727964998,0.319591,3129.0,3128.5,0.7893]
[1731727965203,9.7306,3129.3,3128.4,0.00321476]
[1731727965204,3.19642,3128.5,3128.4,0.00321476]
[1731727967989,3.74642,3128.5,3128.4,0.00321476]
[1731727968421,13.49962,3128.5,3128.4,0.00321476]
[1731727969233,12.94962,3128.5,3128.4,0.00321476]
[1731727970502,13.49962,3128.5,3128.4,0.00321476]
[1731727970707,15.169213,3128.5,3128.4,0.00321476]
[1731727971948,6.249213,3128.5,3128.4,0.00321476]
[1731727972240,4.57962,3128.5,3128.4,0.00321476]
[1731727972615,11.34211551,3128.5,3128.4,0.00321476]
[1731727973442,11.34211551,3128.5,3128.4,4.76e-06]
[1731727975241,11.36211551,3128.5,3128.4,4.76e-06]
[1731727976124,20.28211551,3128.5,3128.4,4.76e-06]
[1731727976335,22.69409586,3128.5,3128.4,4.76e-06]
[1731727976718,22.04134683,3128.5,3128.4,4.76e-06]
[1731727978738,22.53620218,3128.5,3128.4,4.76e-06]
[1731727979339,3.19817,3126.8,3126.6,0.7554]
[1731727979644,6.39446,3127.7,3126.6,0.7554]
[1731727979645,6.30718648,3127.5,3126.6,0.7554]
[1731727979837,3.19803,3127.0,3126.6,0.7554]
[1731727980039,3.19806,3126.9,3126.6,0.7554]
[1731727980365,3.19786,3127.1,3126.6,0.7554]
[1731727980962,3.19734,3127.6,3126.8,0.7554]
[1731727981270,3.19744,3127.5,3126.8,0.7554]
[1731727981861,3.19805,3126.9,3126.8,0.7554]
[1731727982061,3.19805,3126.9,3126.8,0.75861476]
[1731727984261,3.19785,3127.1,3126.8,0.75861476]
[1731727985174,3.19746,3127.5,3126.8,3.95676476]
[1731727985374,3.19746,3127.5,3126.9,0.7554]
[1731727985776,3.19746,3127.5,3127.0,0.786]
[1731727985977,3.19726,3127.7,3126.9,3.19804]
[1731727986273,3.19726,3127.7,3127.0,0.78921476]
[1731727986575,3.19726,3127.7,3127.0,3.98715476]
[1731727987463,3.19726,3127.7,3127.0,4.74625288]
[1731727987779,3.0,3128.1,3127.0,0.78921476]
[1731727988079,4.41669221,3127.8,3127.0,0.78921476]
[1731727988281,3.19765,3127.3,3127.0,0.78921476]
[1731727990866,3.19778,3127.2,3127.0,0.78921476]
[1731727992053,3.19785,3127.1,3127.0,0.78921476]
[1731727992255,3.19785,3127.1,3127.0,0.00321476]
[1731727992466,3.837413,3127.1,3127.0,0.00321476]
[1731727995246,4.387413,3127.1,3127.0,0.00321476]
[1731727996145,7.387413,3127.1,3127.0,0.00321476]
[1731727997792,10.49715948,3127.1,3127.0,0.00321476]
[1731727997946,11.29345948,3127.1,3127.0,0.00321476]
[1731727998462,20.21345948,3127.1,3127.0,0.00321476]
[1731727998658,20.22345948,3127.1,3127.0,0.00321476]
[1731727999599,20.22345948,3127.1,3127.0,4.76e-06]
[1731728003497,20.37914769,3127.1,3127.0,4.76e-06]
[1731728004996,3.19928,3125.7,3125.6,0.7522]
[1731728005382,3.19965,3125.4,3125.2,0.7522]
[1731728006461,3.19965,3125.4,3125.2,0.75541476]
[1731728006696,3.19969,3125.3,3125.2,0.00321476]
[1731728007412,3.1995,3125.5,3125.2,0.00321476]
[1731728007562,3.19909,3125.9,3125.3,0.7614]
[1731728007761,3.19909,3125.9,3125.4,0.7614]
[1731728009260,3.19919,3125.8,3125.4,0.7614]
[1731728009784,3.19919,3125.8,3125.3,0.00321476]
[1731728009785,3.19959,3125.4,3125.3,0.00321476]
[1731728010303,3.839496,3125.4,3125.3,0.00321476]
[1731728014211,3.19959,3125.4,3125.3,0.00321476]
[1731728014395,3.1995,3125.5,3125.4,0.7864]
[1731728014981,3.19841,3126.6,3125.7,3.19927]
[1731728015204,3.19841,3126.6,3126.0,0.7864]
[1731728015205,3.19847,3126.5,3126.0,0.7864]
[1731728015368,3.19887,3126.1,3126.0,0.7864]
[1731728015690,3.19875,3126.3,3126.0,0.78961476]
[1731728016207,3.19816,3126.8,3126.0,0.78961476]
[1731728016405,3.19887,3126.1,3126.0,0.78961476]
[1731728017913,3.19887,3126.1,3126.0,0.00321476]
[1731728020337,4.02587,3126.1,3126.0,0.00321476]
[1731728020636,7.02587,3126.1,3126.0,0.00321476]
[1731728021340,19.61561648,3126.1,3126.0,4.76e-06]
[1731728021635,3.19995,3125.1,3124.7,0.7864]
[1731728022039,3.0,3126.0,3124.8,0.7864]